lending/lending_fUSD_20250122
["ID","MTS","AMOUNT","RATE_DAILY","PERIOD"]
[350021366,1737571848855,-5991.32359784,0.00020914,2]
[350021367,1737571848864,-298.923958,0.00020918,2]
[350021368,1737571848874,-2941.41589844,0.00020919,2]
[350021369,1737571848883,-880.16185793,0.00020921,2]
[350021370,1737571848893,-585.63365748,0.00020921,2]
[350021371,1737571848902,-585.63365748,0.00020922,2]
[350021372,1737571848911,-7139.54736056,0.00020925,2]
[350021373,1737571848921,-6637.96827251,0.00020929,2]
[350021374,1737571848930,-344.30495999,0.00020931,2]
[350021375,1737571848940,-3675.12692503,0.00020931,2]
[350021376,1737571848949,-1915.93083905,0.00020934,2]
[350021377,1737571848958,-344.30495999,0.00020935,2]
[350021378,1737571848967,-733.75735331,0.00020936,2]
[350021379,1737571849247,-327.94,0.00020936,2]
[350021380,1737571849266,-1601.3993352,0.00020936,2]
[350021381,1737572111765,-728.59,0.00018109,2]
[350021382,1737572111789,-500.0,0.00018548,2]
[350021383,1737572111815,-988.51865321,0.00019697,2]
[350021384,1737572111839,-8105.88134679,0.00019797,2]
[350021385,1737572585432,155.17,0.00010137,2]
[350021409,1737573031642,-196.62,0.00012329,2]
[350021410,1737573031652,-206.9625682,0.00015,2]
[350021411,1737573031664,-343.0374318,0.00015,2]
[350021412,1737573031674,-600.0,0.00017,2]
[350021413,1737573031683,-783.09,0.00017379,2]
[350021414,1737573031694,-2138.0,0.000178,2]
[350021415,1737573031705,-500.0,0.00018548,2]
[350021416,1737573031717,-1960.76,0.00018548,2]
[350021417,1737573031728,-158.21,0.00018548,2]
[350021418,1737573031738,-250.0,0.00019141,2]
[350021419,1737573031749,-245.3,0.00019334,2]
[350021420,1737573031759,-161.2,0.00019338,2]
[350021421,1737573031770,-1000.0,0.00019359,2]
[350021422,1737573031780,-897.36,0.00019446,2]
[350021423,1737573031790,-783.09,0.00019643,2]
[350021424,1737573031800,-16765.37945321,0.00019797,2]
[350021425,1737573031810,-2013.0705,0.00019797,2]
[350021426,1737573031820,-300.30284866,0.00019897,2]
[350021427,1737573031830,-500.0,0.00019897,2]
[350021428,1737573031840,-500.0,0.00019897,2]
[350021429,1737573031851,-500.0,0.00019897,2]
[350021430,1737573031862,-500.0,0.00019897,2]
[350021431,1737573031873,-500.0,0.00019897,2]
[350021432,1737573031883,-500.0,0.00019897,2]
[350021433,1737573031893,-278.02731597,0.00019897,2]
[350021434,1737573031904,-375.96158981,0.00019897,2]
[350021435,1737573031917,-500.0,0.00019897,2]
[350021436,1737573031928,-500.0,0.00019897,2]
[350021437,1737573031939,-500.0,0.00019897,2]
[350021438,1737573031950,-500.0,0.00019897,2]
[350021439,1737573031960,-500.0,0.00019897,2]
[350021440,1737573031971,-500.0,0.00019897,2]
[350021441,1737573031981,-500.0,0.00019897,2]
[350021442,1737573031991,-500.0,0.00019897,2]
[350021443,1737573032001,-500.0,0.00019897,2]
[350021444,1737573032012,-500.0,0.00019897,2]
[350021445,1737573032022,-500.0,0.00019897,2]
[350021446,1737573032035,-500.0,0.00019897,2]
[350021447,1737573032046,-500.0,0.00019897,2]
[350021448,1737573032057,-500.0,0.00019897,2]
[350021449,1737573032068,-500.0,0.00019897,2]
[350021451,1737573032079,-500.0,0.00019897,2]
[350021453,1737573032090,-500.0,0.00019897,2]
[350021456,1737573032101,-500.0,0.00019897,2]
[350021458,1737573032111,-500.0,0.00019897,2]
[350021460,1737573032122,-500.0,0.00019897,2]
[350021462,1737573032133,-500.0,0.00019897,2]
[350021464,1737573032143,-500.0,0.00019897,2]
[350021466,1737573032154,-500.0,0.00019897,2]
[350021468,1737573032165,-228.22217138,0.00019897,2]
[350021471,1737573032176,-500.0,0.00019897,2]
[350021473,1737573032188,-500.0,0.00019897,2]
[350021475,1737573032199,-500.0,0.00019897,2]
[350021477,1737573032210,-500.0,0.00019897,2]
[350021479,1737573032220,-500.0,0.00019897,2]
[350021481,1737573032230,-500.0,0.00019897,2]
[350021483,1737573032240,-500.0,0.00019897,2]
[350021485,1737573032251,-500.0,0.00019897,2]
[350021488,1737573032262,-500.0,0.00019897,2]
[350021489,1737573032272,-500.0,0.00019897,2]
[350021492,1737573032285,-500.0,0.00019897,2]
[350021494,1737573032296,-500.0,0.00019897,2]
[350021496,1737573032306,-500.0,0.00019897,2]
[350021498,1737573032317,-150.99,0.00019899,2]
[350021500,1737573032327,-499.94,0.0001999,2]
[350021501,1737573032337,-500.0,0.00019998,2]
[350021504,1737573032348,-500.0,0.00019998,2]
[350021506,1737573032360,-15522.97147026,0.00019998,2]
[350021508,1737573032375,-1426.266449,0.00019998,2]
[350021509,1737573032405,-8131.49731825,0.000178,2]
[350021510,1737573032416,-2224.21268175,0.00019998,2]
[350021511,1737573032436,-31525.1550614,0.00019998,2]
[350021512,1737573032456,-40466.97201107,0.00019998,2]
[350021513,1737573032470,-500.0,0.00019999,2]
[350021514,1737573032481,-500.0,0.00019999,2]
[350021515,1737573032493,-471.98757497,0.00019999,2]
[350021516,1737573032505,-500.0,0.00019999,2]
[350021517,1737573032517,-500.0,0.00019999,2]
[350021518,1737573032533,-500.0,0.00019999,2]
[350021519,1737573032545,-500.0,0.00019999,2]
[350021520,1737573032557,-500.0,0.00019999,2]
[350021521,1737573032569,-500.0,0.00019999,2]
[350021522,1737573032579,-500.0,0.00019999,2]
[350021523,1737573032590,-509.5065087,0.00019999,2]
[350021524,1737573032601,-500.0,0.00019999,2]
[350021525,1737573032612,-500.0,0.00019999,2]
[350021526,1737573032623,-648.68353685,0.00019999,2]
[350021527,1737573032634,-500.0,0.00019999,2]
[350021528,1737573032644,-500.0,0.00019999,2]
[350021529,1737573032655,-500.0,0.00019999,2]
[350021530,1737573032665,-465.30992431,0.00019999,2]
[350021531,1737573032676,-500.0,0.00019999,2]
[350021532,1737573032686,-500.0,0.00019999,2]
[350021533,1737573032697,-500.0,0.00019999,2]
[350021534,1737573032707,-544.47744333,0.00019999,2]
[350021535,1737573032718,-500.0,0.00019999,2]
[350021536,1737573032728,-500.0,0.00019999,2]
[350021537,1737573032738,-500.0,0.00019999,2]
[350021538,1737573032748,-500.0,0.00019999,2]
[350021539,1737573032758,-562.723835,0.00019999,2]
[350021540,1737573032768,-155.67239,0.00019999,2]
[350021541,1737573032781,-500.0,0.00019999,2]
[350021542,1737573032791,-500.0,0.00019999,2]
[350021543,1737573032801,-500.0,0.00019999,2]
[350021544,1737573032811,-475.833849,0.00019999,2]
[350021545,1737573032821,-500.0,0.00019999,2]
[350021546,1737573032831,-500.0,0.00019999,2]
[350021547,1737573032842,-500.0,0.00019999,2]
[350021548,1737573032852,-500.0,0.00019999,2]
[350021549,1737573032862,-500.0,0.00019999,2]
[350021550,1737573032872,-500.0,0.00019999,2]
[350021551,1737573032882,-383.68364992,0.00019999,2]
[350021552,1737573032892,-500.0,0.00019999,2]
[350021553,1737573032902,-500.0,0.00019999,2]
[350021554,1737573032912,-500.0,0.00019999,2]
[350021555,1737573032922,-500.0,0.00019999,2]
[350021556,1737573032933,-500.0,0.00019999,2]
[350021557,1737573032943,-500.0,0.00019999,2]
[350021558,1737573032953,-500.0,0.00019999,2]
[350021559,1737573032964,-500.0,0.00019999,2]
[350021560,1737573032975,-500.0,0.00019999,2]
[350021561,1737573032986,-500.0,0.00019999,2]
[350021562,1737573032996,-500.0,0.00019999,2]
[350021563,1737573033006,-500.0,0.00019999,2]
[350021564,1737573033015,-500.0,0.00019999,2]
[350021565,1737573033025,-500.0,0.00019999,2]
[350021566,1737573033037,-500.0,0.00019999,2]
[350021567,1737573033047,-500.0,0.00019999,2]
[350021568,1737573033057,-500.0,0.00019999,2]
[350021569,1737573033068,-553.49,0.00019999,2]
[350021570,1737573033078,-500.0,0.00019999,2]
[350021571,1737573033088,-500.0,0.00019999,2]
[350021572,1737573033098,-1078.37,0.00019999,2]
[350021573,1737573033107,-569.16,0.00019999,2]
[350021574,1737573033377,-500.0,0.00019999,2]
[350021575,1737573033386,-500.0,0.00019999,2]
[350021576,1737573033396,-500.0,0.00019999,2]
[350021577,1737573033406,-500.0,0.00019999,2]
[350021578,1737573033416,-500.0,0.00019999,2]
[350021579,1737573033426,-500.0,0.00019999,2]
[350021580,1737573033436,-500.0,0.00019999,2]
[350021581,1737573033446,-580.58,0.00019999,2]
[350021582,1737573033456,-500.0,0.00019999,2]
[350021583,1737573033468,-500.0,0.00019999,2]
[350021584,1737573033478,-667.56,0.00019999,2]
[350021585,1737573033488,-500.0,0.00019999,2]
[350021586,1737573033498,-298.49027091,0.00019999,2]
[350021587,1737573033509,-1044.03,0.00019999,2]
[350021588,1737573033518,-843.38,0.00019999,2]
[350021589,1737573033528,-796.79,0.00019999,2]
[350021590,1737573033539,-500.0,0.00019999,2]
[350021591,1737573033549,-636.03,0.00019999,2]
[350021592,1737573033560,-643.37,0.00019999,2]
[350021593,1737573033570,-540.72,0.00019999,2]
[350021594,1737573033579,-280.00307714,0.00019999,2]
[350021595,1737573033589,-1123.36,0.00019999,2]
[350021596,1737573033598,-500.0,0.00019999,2]
[350021597,1737573033608,-500.0,0.00019999,2]
[350021598,1737573033617,-500.0,0.00019999,2]
[350021599,1737573033627,-500.0,0.00019999,2]
[350021600,1737573033637,-1197.53,0.00019999,2]
[350021601,1737573033647,-500.0,0.00019999,2]
[350021602,1737573033656,-276.05486945,0.00019999,2]
[350021603,1737573033678,-223.94513055,0.00019999,2]
[350021604,1737573033688,-349.74486945,0.00019999,2]
[350021605,1737573033699,-388.21513055,0.00019999,2]
[350021606,1737573033709,-500.0,0.00019999,2]
[350021607,1737573033718,-255.65551195,0.00019999,2]
[350021612,1737573037550,-718.27337984,0.00019999,2]
[350021613,1737573037562,-433.70110821,0.00019999,2]
[350021614,1737573037572,-500.0,0.00019999,2]
[350021615,1737573037582,-1081.59,0.00019999,2]
[350021616,1737573037591,-500.0,0.00019999,2]
[350021617,1737573037601,-500.0,0.00019999,2]
[350021618,1737573037611,-933.9,0.00019999,2]
[350021619,1737573037620,-1211.85,0.00019999,2]
[350021620,1737573037629,-500.0,0.00019999,2]
[350021621,1737573037638,-500.0,0.00019999,2]
[350021622,1737573037647,-500.0,0.00019999,2]
[350021623,1737573037657,-500.0,0.00019999,2]
[350021624,1737573037667,-500.0,0.00019999,2]
[350021625,1737573037677,-500.0,0.00019999,2]
[350021626,1737573037686,-500.0,0.00019999,2]
[350021627,1737573037696,-727.28,0.00019999,2]
[350021628,1737573037705,-500.0,0.00019999,2]
[350021629,1737573037714,-500.0,0.00019999,2]
[350021630,1737573037723,-285.42343054,0.00019999,2]
[350021631,1737573037733,-645.3,0.00019999,2]
[350021632,1737573037742,-500.0,0.00019999,2]
[350021633,1737573037751,-1376.44,0.00019999,2]
[350021634,1737573037760,-500.0,0.00019999,2]
[350021635,1737573037769,-500.0,0.00019999,2]
[350021636,1737573037779,-500.0,0.00019999,2]
[350021637,1737573037789,-500.0,0.00019999,2]
[350021638,1737573037798,-500.0,0.00019999,2]
[350021639,1737573037807,-500.0,0.00019999,2]
[350021640,1737573037816,-206.1721365,0.00019999,2]
[350021641,1737573037826,-500.0,0.00019999,2]
[350021642,1737573037835,-508.9,0.00019999,2]
[350021643,1737573037844,-924.98,0.00019999,2]
[350021644,1737573037854,-500.0,0.00019999,2]
[350021645,1737573037864,-500.0,0.00019999,2]
[350021646,1737573037873,-500.0,0.00019999,2]
[350021647,1737573037882,-237.68072775,0.00019999,2]
[350021648,1737573037894,-294.32555122,0.00019999,2]
[350021649,1737573037917,-106.15372103,0.00019999,2]
[350021650,1737573037927,-509.99,0.00019999,2]
[350021651,1737573037937,-662.36,0.00019999,2]
[350021652,1737573037946,-500.0,0.00019999,2]
[350021653,1737573037955,-500.0,0.00019999,2]
[350021654,1737573037966,-368.18089637,0.00019999,2]
[350021830,1737573039825,-131.81910363,0.00019999,2]
[350021832,1737573039834,-500.0,0.00019999,2]
[350021834,1737573039844,-500.0,0.00019999,2]
[350021836,1737573039853,-715.3,0.00019999,2]
[350021838,1737573039862,-240.79587969,0.00019999,2]
[350021840,1737573039878,-259.20412031,0.00019999,2]
[350021842,1737573039887,-9.92024897,0.00019999,2]
[350021853,1737573039982,-490.07975103,0.00019999,2]
[350021855,1737573039992,-170.28046509,0.00019999,2]
[350021857,1737573040002,-500.0,0.00019999,2]
[350021859,1737573040011,-500.0,0.00019999,2]
[350021861,1737573040021,-301.20772388,0.00019999,2]
[350021864,1737573040044,-198.79227612,0.00019999,2]
[350021866,1737573040056,-500.0,0.00019999,2]
[350021868,1737573040066,-500.0,0.00019999,2]
[350021870,1737573040075,-500.0,0.00019999,2]
[350021872,1737573040084,-500.0,0.00019999,2]
[350021873,1737573040094,-500.0,0.00019999,2]
[350021874,1737573040103,-500.0,0.00019999,2]
[350021875,1737573040112,-500.0,0.00019999,2]
[350021876,1737573040121,-514.98,0.00019999,2]
[350021877,1737573040132,-1163.67,0.00019999,2]
[350021878,1737573040142,-500.0,0.00019999,2]
[350021879,1737573040151,-500.0,0.00019999,2]
[350021880,1737573040161,-500.0,0.00019999,2]
[350021881,1737573040170,-500.0,0.00019999,2]
[350021882,1737573040180,-501.01,0.00019999,2]
[350021883,1737573040194,-500.0,0.00019999,2]
[350021884,1737573040208,-500.0,0.00019999,2]
[350021885,1737573040217,-500.0,0.00019999,2]
[350021886,1737573040227,-756.46,0.00019999,2]
[350021887,1737573040237,-669.82,0.00019999,2]
[350021888,1737573040247,-1406.17,0.00019999,2]
[350021889,1737573040256,-500.0,0.00019999,2]
[350021890,1737573040265,-580.66,0.00019999,2]
[350021891,1737573040275,-1049.96,0.00019999,2]
[350021892,1737573040285,-500.0,0.00019999,2]
[350021893,1737573040294,-500.0,0.00019999,2]
[350021894,1737573040304,-500.0,0.00019999,2]
[350021895,1737573040314,-500.0,0.00019999,2]
[350021896,1737573040326,-500.0,0.00019999,2]
[350021897,1737573040337,-545.45,0.00019999,2]
[350021898,1737573040346,-1033.44,0.00019999,2]
[350021899,1737573040355,-500.0,0.00019999,2]
[350021900,1737573040365,-2168.73,0.00019999,2]
[350021901,1737573040374,-33.60182945,0.0002,2]
[350021909,1737573042604,-500.0,0.00019999,2]
[350021910,1737573042613,-3825.99470946,0.0002,2]
[350021911,1737573042624,-1039.491424,0.0002,2]
[350021912,1737573042814,-4185.1536,0.0002,2]
[350021913,1737573042826,-5845.76096975,0.0002,2]
[350021914,1737573042838,-30751.58993094,0.0002,2]
[350021915,1737573042847,-161.02,0.0002005,30]
[350021916,1737573042857,-449.05635063,0.00020171,2]
[350021917,1737573042866,-500.0,0.00020171,2]
[350021918,1737573042875,-500.0,0.00020171,2]
[350021919,1737573042884,-500.0,0.00020171,2]
[350021920,1737573042894,-500.0,0.00020171,2]
[350021921,1737573042903,-500.0,0.00020171,2]
[350021922,1737573042913,-500.0,0.00020171,2]
[350021923,1737573042922,-253.46,0.00020171,2]
[350021924,1737573042931,-538.50533069,0.00020171,2]
[350021925,1737573042940,-500.0,0.00020171,2]
[350021926,1737573042950,-500.0,0.00020171,2]
[350021927,1737573042961,-500.0,0.00020171,2]
[350021928,1737573042971,-532.47,0.00020171,2]
[350021929,1737573042980,-500.0,0.00020171,2]
[350021930,1737573042989,-500.0,0.00020171,2]
[350021931,1737573042998,-500.0,0.00020171,2]
[350021932,1737573043008,-500.0,0.00020171,2]
[350021933,1737573043017,-500.0,0.00020171,2]
[350021934,1737573043027,-500.0,0.00020171,2]
[350021935,1737573043036,-500.0,0.00020171,2]
[350021936,1737573043047,-500.0,0.00020171,2]
[350021937,1737573043056,-500.0,0.00020171,2]
[350021938,1737573043065,-500.0,0.00020171,2]
[350021939,1737573043074,-500.0,0.00020171,2]
[350021940,1737573043083,-500.0,0.00020171,2]
[350021941,1737573043093,-500.0,0.00020171,2]
[350021942,1737573043102,-500.0,0.00020171,2]
[350021943,1737573043111,-500.0,0.00020171,2]
[350021944,1737573043120,-500.0,0.00020171,2]
[350021945,1737573043130,-500.0,0.00020171,2]
[350021946,1737573043139,-500.0,0.00020272,2]
[350021947,1737573043148,-500.0,0.00020272,2]
[350021948,1737573043157,-634.6525661,0.00020273,2]
[350021949,1737573043167,-500.0,0.00020273,2]
[350021950,1737573043176,-500.0,0.00020273,2]
[350021951,1737573043186,-495.75587139,0.00020273,2]
[350021952,1737573043233,-0.00923992,0.00020273,2]
[350021953,1737573043244,-4.23488869,0.00020273,2]
[350021954,1737573043254,-500.0,0.00020273,2]
[350021955,1737573043263,-500.0,0.00020273,2]
[350021956,1737573043273,-500.0,0.00020273,2]
[350021957,1737573043282,-500.0,0.00020273,2]
[350021958,1737573043291,-500.0,0.00020273,2]
[350021959,1737573043300,-606.08387339,0.00020273,2]
[350021960,1737573043309,-500.0,0.00020273,2]
[350021961,1737573043318,-500.0,0.00020273,2]
[350021962,1737573043327,-562.723835,0.00020273,2]
[350021963,1737573043336,-500.0,0.00020273,2]
[350021964,1737573043345,-500.0,0.00020273,2]
[350021965,1737573043355,-500.0,0.00020273,2]
[350021966,1737573043364,-475.833849,0.00020273,2]
[350021967,1737573043373,-500.0,0.00020273,2]
[350021968,1737573043383,-500.0,0.00020273,2]
[350021969,1737573043392,-500.0,0.00020273,2]
[350021970,1737573043401,-500.0,0.00020273,2]
[350021971,1737573043411,-500.0,0.00020273,2]
[350021972,1737573043420,-500.0,0.00020273,2]
[350021973,1737573043430,-500.0,0.00020273,2]
[350021974,1737573043580,-500.0,0.00020273,2]
[350021975,1737573043590,-500.0,0.00020273,2]
[350021976,1737573043599,-500.0,0.00020273,2]
[350021977,1737573043608,-500.0,0.00020273,2]
[350021978,1737573043617,-500.0,0.00020273,2]
[350021979,1737573043627,-500.0,0.00020273,2]
[350021980,1737573043636,-553.49,0.00020273,2]
[350021981,1737573043647,-500.0,0.00020273,2]
[350021982,1737573043657,-178.63731674,0.00020273,2]
[350021983,1737573043667,-500.0,0.00020273,2]
[350021984,1737573043676,-500.0,0.00020273,2]
[350021985,1737573043686,-500.0,0.00020273,2]
[350021986,1737573043696,-500.0,0.00020273,2]
[350021987,1737573043705,-500.0,0.00020273,2]
[350021988,1737573043714,-580.58,0.00020273,2]
[350021989,1737573043723,-500.0,0.00020273,2]
[350021990,1737573043733,-500.0,0.00020273,2]
[350021991,1737573043742,-667.56,0.00020273,2]
[350021992,1737573043751,-500.0,0.00020273,2]
[350021993,1737573043760,-1044.03,0.00020273,2]
[350021994,1737573043770,-843.38,0.00020273,2]
[350021995,1737573043779,-796.79,0.00020273,2]
[350021996,1737573043788,-500.0,0.00020273,2]
[350021997,1737573043797,-636.03,0.00020273,2]
[350021998,1737573043807,-643.37,0.00020273,2]
[350021999,1737573043816,-540.72,0.00020273,2]
[350022000,1737573043825,-1123.36,0.00020273,2]
[350022001,1737573043835,-394.39349595,0.00020273,2]
[350022002,1737573043843,-500.0,0.00020273,2]
[350022003,1737573043852,-500.0,0.00020273,2]
[350022004,1737573043862,-1197.53,0.00020273,2]
[350022005,1737573043871,-349.97655895,0.00020273,2]
[350022006,1737573043880,-737.96,0.00020273,2]
[350022007,1737573043889,-500.0,0.00020273,2]
[350022008,1737573043899,-1407.63,0.00020273,2]
[350022009,1737573043908,-500.0,0.00020273,2]
[350022010,1737573043917,-1081.59,0.00020273,2]
[350022011,1737573043928,-500.0,0.00020273,2]
[350022012,1737573043937,-933.9,0.00020273,2]
[350022013,1737573043947,-1211.85,0.00020273,2]
[350022014,1737573043956,-500.0,0.00020273,2]
[350022015,1737573043965,-500.0,0.00020273,2]
[350022016,1737573043974,-500.0,0.00020273,2]
[350022017,1737573043984,-500.0,0.00020273,2]
[350022018,1737573043993,-500.0,0.00020273,2]
[350022019,1737573044002,-483.00222027,0.00020273,2]
[350022020,1737573044012,-727.28,0.00020273,2]
[350022021,1737573044021,-500.0,0.00020273,2]
[350022022,1737573044030,-645.3,0.00020273,2]
[350022023,1737573044041,-1376.44,0.00020273,2]
[350022024,1737573044050,-500.0,0.00020273,2]
[350022025,1737573044060,-500.0,0.00020273,2]
[350022026,1737573044069,-500.0,0.00020273,2]
[350022027,1737573044080,-500.0,0.00020273,2]
[350022028,1737573044089,-508.9,0.00020273,2]
[350022029,1737573044098,-924.98,0.00020273,2]
[350022030,1737573044107,-500.0,0.00020273,2]
[350022031,1737573044117,-500.0,0.00020273,2]
[350022032,1737573044126,-638.16,0.00020273,2]
[350022033,1737573044136,-509.99,0.00020273,2]
[350022034,1737573044145,-662.36,0.00020273,2]
[350022035,1737573044156,-500.0,0.00020273,2]
[350022036,1737573044166,-500.0,0.00020273,2]
[350022037,1737573044175,-715.3,0.00020273,2]
[350022038,1737573044185,-500.0,0.00020273,2]
[350022039,1737573044195,-500.0,0.00020273,2]
[350022040,1737573044205,-500.0,0.00020273,2]
[350022041,1737573044215,-500.0,0.00020273,2]
[350022042,1737573044225,-500.0,0.00020273,2]
[350022043,1737573044234,-500.0,0.00020273,2]
[350022044,1737573044244,-500.0,0.00020273,2]
[350022045,1737573044254,-500.0,0.00020273,2]
[350022046,1737573044263,-500.0,0.00020273,2]
[350022047,1737573044273,-500.0,0.00020273,2]
[350022048,1737573044283,-514.98,0.00020273,2]
[350022049,1737573044294,-1163.67,0.00020273,2]
[350022050,1737573044303,-500.0,0.00020273,2]
[350022051,1737573044314,-500.0,0.00020273,2]
[350022052,1737573044324,-500.0,0.00020273,2]
[350022053,1737573044334,-501.01,0.00020273,2]
[350022054,1737573044344,-527.97,0.00020273,2]
[350022055,1737573044354,-360.76924437,0.00020273,2]
[350022056,1737573044364,-756.46,0.00020273,2]
[350022057,1737573044374,-669.82,0.00020273,2]
[350022058,1737573044384,-1406.17,0.00020273,2]
[350022059,1737573044394,-500.0,0.00020273,2]
[350022060,1737573044405,-580.66,0.00020273,2]
[350022061,1737573044416,-1049.96,0.00020273,2]
[350022062,1737573044426,-500.0,0.00020273,2]
[350022063,1737573044436,-500.0,0.00020273,2]
[350022064,1737573044446,-500.0,0.00020273,2]
[350022065,1737573044456,-500.0,0.00020273,2]
[350022066,1737573044470,-545.45,0.00020273,2]
[350022067,1737573044481,-1033.44,0.00020273,2]
[350022068,1737573044491,-2168.73,0.00020273,2]
[350022069,1737573044502,-500.0,0.00020273,2]
[350022070,1737573044512,-150.0,0.00020299,2]
[350022071,1737573044524,-3903.0,0.00020299,2]
[350022072,1737573044533,-1176.0,0.00020299,2]
[350022073,1737573044544,-11505.5372639,0.00020365,2]
[350022074,1737573044553,-500.0,0.00020445,2]
[350022075,1737573044563,-500.0,0.00020445,2]
[350022076,1737573044573,-444.41984955,0.00020445,2]
[350022077,1737573044583,-500.0,0.00020445,2]
[350022078,1737573044593,-500.0,0.00020445,2]
[350022079,1737573044603,-248.3407065,0.00020445,2]
[350022080,1737573044613,-500.0,0.00020445,2]
[350022081,1737573044623,-500.0,0.00020445,2]
[350022082,1737573044632,-500.0,0.00020445,2]
[350022083,1737573044642,-500.0,0.00020445,2]
[350022084,1737573044653,-616.42920135,0.00020445,2]
[350022085,1737573044663,-500.0,0.00020445,2]
[350022086,1737573044673,-500.0,0.00020445,2]
[350022087,1737573044682,-500.0,0.00020445,2]
[350022088,1737573044692,-500.0,0.00020445,2]
[350022089,1737573044702,-355.13230218,0.00020445,2]
[350022090,1737573044712,-500.0,0.00020445,2]
[350022091,1737573044721,-308.33647276,0.00020447,2]
[350022092,1737573044731,-500.0,0.00020546,2]
[350022093,1737573044740,-500.0,0.00020547,2]
[350022094,1737573044750,-469.11605653,0.00020547,2]
[350022095,1737573044759,-500.0,0.00020547,2]
[350022096,1737573044769,-500.0,0.00020547,2]
[350022097,1737573044778,-500.0,0.00020547,2]
[350022098,1737573044788,-500.0,0.00020547,2]
[350022099,1737573044799,-500.0,0.00020547,2]
[350022100,1737573044808,-500.0,0.00020547,2]
[350022101,1737573044818,-500.0,0.00020547,2]
[350022102,1737573044828,-500.0,0.00020547,2]
[350022103,1737573044838,-562.723835,0.00020547,2]
[350022104,1737573044848,-500.0,0.00020547,2]
[350022105,1737573044857,-500.0,0.00020547,2]
[350022106,1737573044867,-475.833849,0.00020547,2]
[350022107,1737573044877,-500.0,0.00020547,2]
[350022108,1737573044887,-302.14583968,0.00020547,2]
[350022109,1737573044897,-500.0,0.00020547,2]
[350022110,1737573044907,-500.0,0.00020547,2]
[350022111,1737573044917,-500.0,0.00020547,2]
[350022112,1737573044927,-569.19082096,0.00020547,2]
[350022113,1737573044936,-500.0,0.00020547,2]
[350022114,1737573044946,-500.0,0.00020547,2]
[350022115,1737573044956,-500.0,0.00020547,2]
[350022116,1737573044966,-500.0,0.00020547,2]
[350022117,1737573044976,-500.0,0.00020547,2]
[350022118,1737573044986,-500.0,0.00020547,2]
[350022119,1737573044995,-500.0,0.00020547,2]
[350022120,1737573045006,-553.49,0.00020547,2]
[350022121,1737573045016,-500.0,0.00020547,2]
[350022122,1737573045026,-500.0,0.00020547,2]
[350022123,1737573045036,-500.0,0.00020547,2]
[350022124,1737573045047,-500.0,0.00020547,2]
[350022125,1737573045057,-500.0,0.00020547,2]
[350022126,1737573045067,-500.0,0.00020547,2]
[350022127,1737573045077,-580.58,0.00020547,2]
[350022128,1737573045087,-500.0,0.00020547,2]
[350022129,1737573045097,-500.0,0.00020547,2]
[350022130,1737573045107,-667.56,0.00020547,2]
[350022131,1737573045118,-500.0,0.00020547,2]